fUSD/lending_fUSD_20260321
["ID","MTS","AMOUNT","RATE_DAILY","PERIOD"]
[408666102,1774095039951,-446.0,0.00014748,2]
[408666103,1774095039961,-446.0,0.00014748,2]
[408666104,1774095039971,-446.0,0.00014748,2]
[408666105,1774095039981,-446.0,0.00014748,2]
[408666106,1774095039990,-446.0,0.00014748,2]
[408666107,1774095040000,-446.0,0.00014748,2]
[408666108,1774095040011,-446.0,0.00014748,2]
[408666109,1774095040022,-446.0,0.00014748,2]
[408666110,1774095040032,-446.0,0.00014748,2]
[408666111,1774095040043,-446.0,0.00014748,2]
[408666112,1774095040053,-446.0,0.00014748,2]
[408666113,1774095040062,-446.0,0.00014748,2]
[408666114,1774095040072,-446.0,0.00014748,2]
[408666115,1774095040081,-446.0,0.00014748,2]
[408666116,1774095040092,-455.95065984,0.00014748,2]
[408666117,1774095040102,-500.0,0.00014748,2]
[408666118,1774095040112,-500.0,0.00014748,2]
[408666119,1774095040122,-474.69033023,0.00014748,2]
[408666120,1774095040132,-265.07762347,0.00014748,2]
[408666121,1774095040141,-2255.61062265,0.00014833,2]
[408666122,1774095040151,-12806.15572372,0.00014833,2]
[408666123,1774095040161,-1978.82503224,0.00014871,2]
[408666124,1774095040171,-1000.0,0.0001499,2]
[408666125,1774095040180,-250.0,0.00015,2]
[408666126,1774095040189,-500.64649173,0.00015,2]
[408666127,1774095040198,-500.37853052,0.00015,2]
[408666128,1774095040208,-2671.13458251,0.00015022,2]
[408666129,1774095040217,-2222.8763441,0.00015022,2]
[408666130,1774095040226,-617.91991046,0.00015022,2]
[408666131,1774095040235,-7234.70553466,0.00015022,2]
[408666132,1774095040244,-500.0,0.00015033,2]
[408666133,1774095040254,-500.0,0.00015033,2]
[408666134,1774095040263,-500.0,0.00015033,2]
[408666135,1774095040273,-500.0,0.00015033,2]
[408666136,1774095040282,-500.0,0.00015033,2]
[408666137,1774095040292,-500.0,0.00015033,2]
[408666138,1774095040302,-500.0,0.00015033,2]
[408666139,1774095040312,-500.0,0.00015033,2]
[408666140,1774095040321,-500.0,0.00015033,2]
[408666141,1774095040331,-568.73940458,0.00015033,2]
[408666142,1774095040340,-500.56236053,0.00015067,2]
[408666143,1774095040349,-500.84837608,0.00015067,2]
[408666144,1774095040359,-200.0,0.00015099,2]
[408666145,1774095040368,-2255.61062265,0.000151,2]
[408666146,1774095040378,-12806.15572372,0.000151,2]
[408666147,1774095040387,-500.0,0.00015199,2]
[408666148,1774095040396,-250.0,0.00015199,2]
[408666149,1774095040405,-500.0,0.00015199,2]
[408666150,1774095040415,-500.0,0.00015199,2]
[408666151,1774095040424,-500.0,0.00015199,2]
[408666152,1774095040434,-500.0,0.00015199,2]
[408666153,1774095040443,-500.0,0.00015199,2]
[408666154,1774095040452,-500.0,0.00015199,2]
[408666155,1774095040462,-500.0,0.00015199,2]
[408666156,1774095040471,-250.0,0.00015199,2]
[408666157,1774095040481,-500.0,0.00015199,2]
[408666158,1774095040492,-250.0,0.00015199,2]
[408666159,1774095040502,-500.0,0.00015199,2]
[408666160,1774095040512,-250.0,0.00015199,2]
[408666161,1774095040522,-500.0,0.00015199,2]
[408666162,1774095040532,-250.0,0.00015199,2]
[408666163,1774095040543,-500.0,0.00015199,2]
[408666164,1774095040553,-500.0,0.00015199,2]
[408666165,1774095040562,-250.0,0.00015199,2]
[408666166,1774095040572,-250.0,0.00015199,2]
[408666167,1774095040582,-500.0,0.00015199,2]
[408666168,1774095040591,-500.0,0.00015199,2]
[408666169,1774095040601,-250.0,0.00015199,2]
[408666170,1774095040610,-250.0,0.00015199,2]
[408666171,1774095040619,-280.93336224,0.00015199,2]
[408666172,1774095040629,-500.0,0.00015199,2]
[408666174,1774095040638,-500.0,0.00015199,2]
[408666175,1774095040647,-268.3661478,0.00015199,2]
[408666177,1774095040657,-250.0,0.00015199,2]
[408666178,1774095040668,-500.0,0.00015199,2]
[408666179,1774095040678,-500.0,0.00015199,2]
[408666180,1774095040688,-250.0,0.00015199,2]
[408666181,1774095040697,-500.0,0.00015199,2]
[408666182,1774095040707,-516.47340423,0.00015199,2]
[408666183,1774095040716,-250.0,0.00015199,2]
[408666184,1774095040725,-500.0,0.00015199,2]
[408666185,1774095040736,-250.0,0.00015199,2]
[408666186,1774095040748,-500.0,0.00015199,2]
[408666187,1774095040757,-250.0,0.00015199,2]
[408666188,1774095040766,-250.0,0.00015199,2]
[408666189,1774095040776,-250.0,0.00015199,2]
[408666190,1774095040785,-260.83847575,0.00015199,2]
[408666191,1774095040793,-250.0,0.00015199,2]
[408666192,1774095040803,-250.0,0.00015199,2]
[408666193,1774095040813,-250.0,0.00015199,2]
[408666194,1774095040822,-250.0,0.00015199,2]
[408666195,1774095040832,-151.0,0.00015199,2]
[408666196,1774095040841,-250.0,0.00015199,2]
[408666197,1774095040850,-250.0,0.00015199,2]
[408666198,1774095040859,-250.0,0.00015199,2]
[408666199,1774095040868,-335.32119913,0.00015199,2]
[408666200,1774095040878,-250.0,0.00015199,2]
[408666201,1774095040887,-250.0,0.00015199,2]
[408666202,1774095040897,-250.0,0.00015199,2]
[408666203,1774095040906,-250.0,0.00015199,2]
[408666204,1774095040915,-250.0,0.00015199,2]
[408666205,1774095040924,-250.0,0.00015199,2]
[408666206,1774095040934,-250.0,0.00015199,2]
[408666207,1774095040944,-250.0,0.00015199,2]
[408666208,1774095040955,-250.0,0.00015199,2]
[408666209,1774095040964,-1978.82503224,0.00015214,2]
[408666210,1774095040974,-783.0,0.00015221,2]
[408666211,1774095040984,-322.0,0.00015246,2]
[408666212,1774095040994,-500.0,0.00015254,2]
[408666213,1774095041007,-151.0,0.00015254,2]
[408666214,1774095041018,-500.0,0.00015264,2]
[408666215,1774095041027,-554.0,0.00015268,2]
[408666216,1774095041038,-587.0,0.00015268,2]
[408666217,1774095041048,-783.0,0.0001528,2]
[408666218,1774095041059,-500.0,0.00015309,2]
[408666219,1774095041068,-151.0,0.00015309,2]
[408666220,1774095041076,-783.0,0.00015319,2]
[408666221,1774095041086,-180.194148,0.00015321,7]
[408666222,1774095041095,-431.216736,0.00015321,7]
[408666223,1774095041105,-439.4002,0.0001534,7]
[408666224,1774095041115,-426.83103308,0.00015351,2]
[408666225,1774095041139,-1924.16896692,0.00015351,2]
[408666226,1774095041148,-500.0,0.00015364,2]
[408666227,1774095041159,-151.0,0.00015364,2]
[408666228,1774095041168,-2255.61062265,0.00015366,2]
[408666229,1774095041177,-12806.15572372,0.00015366,2]
[408666230,1774095041187,-972.0,0.00015374,2]
[408666231,1774095041196,-783.0,0.00015394,2]
[408666232,1774095041205,-500.0,0.00015419,2]
[408666233,1774095041214,-151.0,0.00015419,2]
[408666234,1774095041223,-433.55,0.0001545,2]
[408666235,1774095041233,-500.0,0.00015474,2]
[408666236,1774095041242,-151.0,0.00015474,2]
[408666237,1774095041253,-322.0,0.00015489,2]
[408666238,1774095041262,-200.0,0.000155,2]
[408666239,1774095041272,-200.0,0.000155,2]
[408666240,1774095041282,-500.0,0.00015529,2]
[408666241,1774095041291,-1978.82503224,0.00015557,2]
[408666242,1774095041301,-1000.0,0.00015581,2]
[408666243,1774095041310,-1000.0,0.00015581,2]
[408666244,1774095041322,-1000.0,0.00015581,2]
[408666245,1774095041333,-419.75064279,0.00015581,2]
[408666246,1774095041343,-301.677511,0.00015581,2]
[408666247,1774095041353,-1007.92423982,0.00015581,2]
[408666248,1774095041363,-500.0,0.00015581,2]
[408666249,1774095041373,-1038.91632234,0.00015581,2]
[408666250,1774095041382,-1000.0,0.00015581,2]
[408666251,1774095041391,-500.0,0.00015584,2]
[408666252,1774095041401,-900.0,0.000156,5]
[408666253,1774095041411,-2255.61062265,0.00015633,2]
[408666254,1774095041422,-12806.15572372,0.00015633,2]
[408666255,1774095041432,-500.0,0.00015639,2]
[408666256,1774095041442,-2000.0,0.00015653,2]
[408666257,1774095041451,-2374.002028,0.00015682,2]
[408666258,1774095041460,-2000.0,0.000157,2]
[408666259,1774095041470,-900.0,0.000157,5]
[408666260,1774095041480,-1000.0,0.00015712,2]
[408666261,1774095041489,-1000.0,0.00015724,2]
[408666262,1774095041499,-500.0,0.00015726,2]
[408666263,1774095041508,-500.0,0.00015726,2]
[408666264,1774095041517,-433.0,0.00015728,2]
[408666265,1774095041526,-993.0,0.00015743,2]
[408666266,1774095041536,-1000.0,0.00015749,2]
[408666267,1774095041546,-150.0,0.00015767,2]
[408666268,1774095041556,-1000.0,0.00015787,2]
[408666269,1774095041566,-972.0,0.00015787,2]
[408666270,1774095041576,-160.0,0.00015793,2]
[408666271,1774095041586,-979.16666667,0.00015793,2]
[408666272,1774095041596,-409.26,0.000158,2]
[408666273,1774095041606,-1207.59,0.000158,2]
[408666274,1774095041616,-1491.51,0.000158,2]
[408666275,1774095041626,-908.53,0.000158,2]
[408666276,1774095041635,-2000.0,0.000158,2]
[408666277,1774095041645,-900.0,0.000158,5]
[408666278,1774095041654,-1000.0,0.00015812,2]
[408666279,1774095041664,-972.0,0.00015824,2]
[408666280,1774095041677,-1000.0,0.00015829,2]
[408666281,1774095041688,-1000.0,0.00015831,2]
[408666282,1774095041698,-1000.0,0.00015836,2]
[408666283,1774095041708,-158925.76070078,0.0001584,2]
[408666284,1774095041718,-193.60696256,0.00015851,2]
[408666285,1774095041727,-150.0,0.00015869,2]
[408666286,1774095041738,-150.0,0.00015874,2]
[408666287,1774095041747,-1000.0,0.00015887,2]
[408666288,1774095041757,-150.0,0.0001589,2]
[408666289,1774095041767,-358.12750716,0.000159,3]
[408666290,1774095041776,-2255.61062265,0.000159,2]
[408666291,1774095041785,-2000.0,0.000159,2]
[408666292,1774095041795,-900.0,0.000159,5]
[408666293,1774095041804,-12806.15572372,0.000159,2]
[408666294,1774095041813,-210.47643993,0.000159,2]
[408666295,1774095041822,-1262.94609,0.000159,2]
[408666296,1774095041832,-1978.82503224,0.000159,2]
[408666297,1774095041841,-289.64454011,0.000159,2]
[408666298,1774095041850,-267.3129113,0.000159,2]
[408666299,1774095041859,-2990.0,0.000159,5]
[408666300,1774095041869,-2186.0,0.000159,5]
[408666301,1774095041878,-150.0,0.00015906,2]
[408666302,1774095041887,-1000.0,0.00015909,2]
[408666303,1774095041896,-1078.35161779,0.00015914,2]
[408666304,1774095041906,-1000.0,0.00015928,2]
[408666305,1774095041915,-150.0,0.00015929,2]
[408666306,1774095041924,-150.0,0.00015929,2]
[408666307,1774095041933,-1000.0,0.00015932,2]
[408666308,1774095041942,-1000.0,0.00015952,2]
[408666309,1774095041951,-1962.81419762,0.00015956,2]
[408666310,1774095041960,-500.0,0.0001597,2]
[408666311,1774095041970,-500.0,0.0001597,2]
[408666312,1774095041979,-497.24675542,0.0001597,2]
[408666313,1774095041991,-2.75324458,0.0001597,2]
[408666314,1774095042000,-500.0,0.0001597,2]
[408666315,1774095042009,-500.0,0.0001597,2]
[408666316,1774095042020,-500.0,0.0001597,2]
[408666317,1774095042029,-705.22797161,0.0001597,2]
[408666318,1774095042038,-151.0,0.00015973,2]
[408666319,1774095042048,-151.0,0.00015973,2]
[408666320,1774095042058,-151.0,0.00015973,2]
[408666321,1774095042067,-151.0,0.00015973,2]
[408666322,1774095042077,-151.0,0.00015973,2]
[408666323,1774095042087,-151.0,0.00015973,2]
[408666324,1774095042097,-240.2370146,0.00015973,2]
[408666325,1774095042107,-433.55152138,0.00015978,2]
[408666326,1774095042116,-150.082,0.0001599,2]
[408666327,1774095042127,-150.113,0.0001599,2]
[408666328,1774095042137,-150.046,0.0001599,2]
[408666329,1774095042146,-150.0,0.0001599,2]
[408666330,1774095042155,-150.089,0.0001599,2]
[408666331,1774095042164,-621.696,0.0001599,2]
[408666332,1774095042174,-399.23796783,0.0001599,2]
[408666333,1774095042186,-3113.76203217,0.0001599,2]
[408666334,1774095042195,-1044.0,0.0001599,2]
[408666335,1774095042205,-150.0,0.0001599,2]
[408666336,1774095042215,-1264.805,0.0001599,2]
[408666337,1774095042224,-436.233,0.0001599,2]
[408666338,1774095042234,-2466.0,0.0001599,2]
[408666339,1774095042244,-22873.2869553,0.00015995,2]
[408666340,1774095042253,-8409.7818571,0.00015995,2]
[408666341,1774095042263,-34401.1484865,0.00015995,2]
[408666342,1774095042531,-289.96630673,0.00015995,2]
[408666343,1774095042547,-211705.95483667,0.00015995,2]
[408666344,1774095042557,-19180.0818552,0.00015995,2]
[408666345,1774095042567,-2760.146219,0.00015995,2]
[408666346,1774095042577,-4620261.84611582,0.00016,2]
[408666347,1774095042587,-174.19,0.00016,2]
[408666348,1774095042597,-150.0,0.00016,2]
[408666349,1774095042607,-170.66669499,0.00016,2]
[408666350,1774095042616,-150.0,0.00016,2]
[408666351,1774095042626,-11957.24627584,0.00016,2]
[408666352,1774095042636,-2000.0,0.00016,2]
[408666355,1774095042806,-1000.0,0.00016,2]
[408666356,1774095042817,-1000.0,0.00016,2]
[408666357,1774095042827,-1000.0,0.00016,2]
[408666358,1774095042837,-1000.0,0.00016,2]
[408666359,1774095042847,-1000.0,0.00016,2]
[408666360,1774095042857,-1000.0,0.00016,2]
[408666361,1774095042870,-1000.0,0.00016,2]
[408666362,1774095042881,-1000.0,0.00016,2]
[408666363,1774095042891,-1000.0,0.00016,2]
[408666364,1774095042900,-1000.0,0.00016,2]
[408666365,1774095042910,-1000.0,0.00016,2]
[408666366,1774095042920,-1000.0,0.00016,2]
[408666367,1774095042930,-1000.0,0.00016,2]
[408666368,1774095042939,-200.0,0.00016,2]
[408666369,1774095042950,-1559081.91472078,0.00016,2]
[408666370,1774095043018,-144694.66466232,0.00016,2]
[408666371,1774095043034,-3451.94947151,0.00016,2]
[408666372,1774095043045,-5542.998553,0.00016,2]
[408666373,1774095043056,-8828.48206045,0.00016,2]
[408666374,1774095043071,-8947.21879473,0.00016,2]
[408666375,1774095043082,-8943.78386462,0.00016,2]
[408666376,1774095043094,-9077.54866152,0.00016,2]
[408666380,1774095044899,-39061.60300685,0.00016,2]
[408666381,1774095044912,-610.77887769,0.00016,2]
[408666382,1774095045116,-171788.94829935,0.00016,2]
[408666383,1774095045172,-5721.83543615,0.00016,2]
[408666396,1774095045806,-1136.82271602,0.00016,2]
[408666397,1774095045860,-2370.0904925,0.00016,2]
[408666398,1774095045967,-10683.1,0.00016,2]
[408666399,1774095045978,-2158.00000002,0.00016,2]
[408666400,1774095045989,-18689.02840816,0.00016,2]
[408666401,1774095046023,-5988.9920056,0.00016,2]
[408666402,1774095046235,-513.45992186,0.00016,2]
[408666584,1774096005103,-218.45,0.00012438,2]
[408666585,1774096005124,-155.05633528,0.00012438,2]
[408666666,1774096170083,-3085.2791019,9.5e-05,3]
[408666675,1774096232129,-926.48,9.499e-05,2]
[408666676,1774096232184,-273.52,9.499e-05,2]
[408666677,1774096232193,-150.0,9.499e-05,2]
[408666678,1774096232203,-6161.94145015,9.5e-05,3]
[408666679,1774096232216,-242696.33804296,9.5e-05,3]
[408666692,1774096238293,-2923.80028505,9.5e-05,3]
[408666693,1774096238303,-1680.0,0.00010449,2]
[408666694,1774096238313,-255.0,0.00010449,2]
[408666695,1774096238323,-717.0,0.00011494,2]
[408666696,1774096238332,-433.0,0.00011494,2]
[408666697,1774096238342,-500.0,0.00012588,2]
[408666698,1774096238352,-166.66,0.00013501,2]
[408666699,1774096238362,-7650.76218986,0.0001354,2]
[408666700,1774096238373,-166.66,0.00013785,2]
[408666701,1774096238382,-1200.0,0.00013989,2]
[408666702,1774096238392,-11350.00421475,0.0001399,2]
[408666703,1774096238402,-166.66,0.00014069,2]
[408666704,1774096238418,-161.3,0.00014322,2]
[408666705,1774096238428,-166.66,0.00014354,2]
[408666706,1774096238438,-500.0,0.00014356,2]
[408666707,1774096238447,-500.0,0.00014356,2]
[408666708,1774096238456,-500.0,0.00014356,2]
[408666709,1774096238466,-166.81,0.00014458,2]
[408666710,1774096238475,-150.0,0.00014555,2]
[408666711,1774096238485,-166.66,0.00014638,2]
[408666712,1774096238494,-1852.42,0.00014665,2]
[408666713,1774096238503,-4887.32745851,0.00014883,2]
[408666714,1774096238513,-999.99,0.00014883,2]
[408666715,1774096238523,-1264.02,0.00014883,2]
[408666716,1774096238532,-9999.99,0.00014883,2]
[408666717,1774096238543,-5365.66,0.00014883,2]
[408666718,1774096238553,-16876.52564048,0.00014883,2]
[408666719,1774096238655,-12882.75435952,0.00014883,2]
[408666720,1774096238665,-320.81698301,0.000149,2]
[408666721,1774096238674,-166.66,0.00014922,2]
[408666722,1774096238684,-250.0,0.00015,2]
[408666723,1774096238693,-1189.17,0.00015,2]
[408666724,1774096238702,-150.99,0.00015,2]
[408666725,1774096238712,-9999.99,0.00015,2]
[408666726,1774096238721,-22903.57,0.00015,2]
[408666727,1774096238731,-545.11,0.00015,2]
[408666728,1774096238740,-58731.62,0.00015,2]
[408666729,1774096238749,-9456.43,0.00015,2]
[408666730,1774096238758,-500.0,0.00015002,5]
[408666731,1774096238768,-320.81698292,0.00015011,2]
[408666732,1774096238778,-3240.0,0.00015042,2]
[408666733,1774096238787,-166.81,0.00015055,2]
[408666734,1774096238797,-562.85,0.00015068,2]
[408666735,1774096238807,-150.0,0.00015112,2]
[408666736,1774096238816,-320.81698292,0.00015122,2]
[408666737,1774096238825,-500.0,0.00015199,2]
[408666738,1774096238835,-500.0,0.00015199,2]
[408666739,1774096238844,-500.0,0.00015199,2]
[408666740,1774096238853,-500.0,0.00015199,2]
[408666741,1774096238863,-500.0,0.00015199,2]
[408666742,1774096238873,-500.0,0.00015199,2]
[408666743,1774096238883,-500.0,0.00015199,2]
[408666744,1774096238892,-500.0,0.00015199,2]
[408666745,1774096238902,-500.0,0.00015199,2]
[408666746,1774096238911,-500.0,0.00015199,2]
[408666747,1774096238921,-500.0,0.00015199,2]
[408666748,1774096238930,-500.0,0.00015199,2]
[408666749,1774096238943,-356.15954073,0.00015199,2]
[408666750,1774096238953,-500.0,0.00015199,2]
[408666751,1774096238963,-320.81698292,0.00015233,2]
[408666752,1774096238972,-2523.00856666,0.00015277,2]
[408666753,1774096238983,-200.0,0.000153,2]
[408666754,1774096238993,-1059.0,0.00015326,2]
[408666755,1774096239003,-320.81698292,0.00015344,2]
[408666756,1774096239015,-275.0,0.00015443,2]
[408666757,1774096239025,-275.0,0.00015453,2]
[408666758,1774096239035,-320.81698292,0.00015456,2]
[408666759,1774096239046,-500.0,0.00015473,2]
[408666760,1774096239056,-275.0,0.00015476,2]
[408666761,1774096239065,-628.75886358,0.000155,2]
[408666762,1774096239075,-2285.06,0.00015507,2]
[408666763,1774096239086,-3529.15817376,0.00015528,2]
[408666764,1774096239095,-168.0,0.00015547,2]
[408666765,1774096239105,-320.81698292,0.00015567,2]
[408666766,1774096239114,-275.0,0.00015572,2]
[408666767,1774096239288,-166.81,0.00015651,2]
[408666768,1774096239298,-320.81698292,0.00015678,2]
[408666769,1774096239307,-1035.25,0.00015691,2]
[408666770,1774096239317,-275.0,0.00015692,2]
[408666771,1774096239326,-3532.0,0.000157,2]
[408666772,1774096239335,-168.0,0.00015701,2]
[408666773,1774096239345,-979.16666667,0.00015708,2]
[408666774,1774096239355,-25765.58682318,0.00015715,2]
[408666775,1774096239364,-500.0,0.00015726,2]
[408666776,1774096239374,-1381.847,0.00015781,2]
[408666777,1774096239383,-320.81698292,0.00015789,2]
[408666778,1774096239393,-766.02717443,0.000158,2]
[408666779,1774096239402,-2500.0,0.000158,2]
[408666780,1774096239412,-153.7845791,0.000158,5]
[408666781,1774096239422,-766.02717443,0.00015811,2]
[408666782,1774096239432,-766.02717443,0.00015822,2]
[408666783,1774096239441,-766.02717443,0.00015833,2]
[408666784,1774096239450,-150.0,0.00015841,2]
[408666785,1774096239459,-150.0,0.00015841,7]
[408666786,1774096239468,-766.02717443,0.00015844,2]
[408666787,1774096239477,-766.02717443,0.00015856,2]
[408666788,1774096239486,-766.02717443,0.00015867,2]
[408666789,1774096239496,-501.12763148,0.00015873,2]
[408666790,1774096239505,-500.0,0.00015873,2]
[408666791,1774096239514,-535.77181078,0.00015873,2]
[408666792,1774096239523,-167.44290588,0.00015873,2]
[408666793,1774096239532,-766.02717443,0.00015878,2]
[408666794,1774096239541,-766.02717443,0.00015889,2]
[408666795,1774096239550,-2000.0,0.0001589,2]
[408666796,1774096239559,-2285.06,0.00015895,2]
[408666797,1774096239568,-500.0,0.00015899,2]
[408666798,1774096239577,-500.0,0.00015899,2]
[408666799,1774096239586,-500.0,0.00015899,2]
[408666800,1774096239595,-634.74857748,0.00015899,2]
[408666801,1774096239605,-500.0,0.00015899,2]
[408666802,1774096239615,-500.0,0.00015899,2]
[408666803,1774096239624,-500.0,0.00015899,2]
[408666804,1774096239633,-500.0,0.00015899,2]
[408666805,1774096239643,-500.0,0.00015899,2]
[408666806,1774096239653,-320.61421435,0.00015899,2]
[408666807,1774096239663,-500.0,0.00015899,2]
[408666808,1774096239673,-500.0,0.00015899,2]
[408666809,1774096239682,-500.0,0.00015899,2]
[408666810,1774096239691,-500.0,0.00015899,2]
[408666811,1774096239701,-500.0,0.00015899,2]
[408666812,1774096239710,-500.0,0.00015899,2]
[408666813,1774096239720,-500.0,0.00015899,2]
[408666814,1774096239729,-500.0,0.00015899,2]
[408666815,1774096239741,-500.0,0.00015899,2]
[408666816,1774096239751,-500.0,0.00015899,2]
[408666817,1774096239761,-500.0,0.00015899,2]
[408666818,1774096239770,-500.0,0.00015899,2]
[408666819,1774096239780,-500.0,0.00015899,2]
[408666820,1774096239789,-500.0,0.00015899,2]
[408666821,1774096239798,-500.0,0.00015899,2]
[408666822,1774096239807,-500.0,0.00015899,2]
[408666823,1774096239817,-500.0,0.00015899,2]
[408666824,1774096239826,-500.0,0.00015899,2]
[408666825,1774096239836,-500.0,0.00015899,2]
[408666826,1774096239845,-500.0,0.00015899,2]
[408666827,1774096239855,-500.0,0.00015899,2]
[408666828,1774096239864,-500.0,0.00015899,2]
[408666829,1774096239874,-210.11706781,0.00015899,2]
[408666830,1774096239884,-193.76250543,0.00015899,2]
[408666832,1774096239897,-500.0,0.00015899,2]
[408666834,1774096239907,-500.0,0.00015899,2]
[408666835,1774096239919,-500.0,0.00015899,2]
[408666836,1774096239929,-500.0,0.00015899,2]
[408666837,1774096239941,-500.0,0.00015899,2]
[408666838,1774096239951,-200.0,0.00015899,2]
[408666839,1774096239961,-500.0,0.00015899,2]
[408666840,1774096239970,-412.82980425,0.00015899,2]
[408666841,1774096239980,-500.0,0.00015899,2]
[408666842,1774096239990,-745.74888399,0.000159,2]
[408666843,1774096240000,-1941.74125384,0.000159,2]
[408666844,1774096240011,-1668.24668217,0.000159,2]
[408666845,1774096240021,-152.55065942,0.000159,2]
[408666846,1774096240031,-156.75588929,0.000159,2]
[408666847,1774096240041,-10286.41640824,0.000159,2]
[408666848,1774096240054,-4673.6424862,0.000159,2]
[408666850,1774096240538,-3833.71250556,0.000159,2]
[408666851,1774096240547,-4860.76894434,0.000159,2]
[408666852,1774096240558,-6491.97024285,0.000159,2]
[408666853,1774096240593,-2488647.26081281,0.000159,2]
[408666854,1774096240604,-1000.0,0.000159,2]
[408666855,1774096240615,-5000.0,0.000159,2]
[408666856,1774096240624,-139465.1392,0.000159,2]
[408666857,1774096240634,-766.02717443,0.000159,2]
[408666858,1774096240643,-320.81698292,0.000159,2]
[408666859,1774096240653,-174.07953815,0.000159,2]
[408666860,1774096240664,-153.7845791,0.000159,5]
[408666861,1774096240676,-1750.0,0.000159,5]
[408666862,1774096240685,-1396.0,0.000159,5]
[408666863,1774096240695,-1035.25,0.00015965,2]
[408666864,1774096240705,-500.0,0.00015973,2]
[408666865,1774096240714,-500.0,0.00015973,2]
[408666866,1774096240724,-500.0,0.00015973,2]
[408666867,1774096240734,-500.0,0.00015973,2]
[408666868,1774096240743,-500.0,0.00015973,2]
[408666869,1774096240752,-500.0,0.00015973,2]
[408666870,1774096240761,-500.0,0.00015973,2]
[408666871,1774096240771,-3798083.68843089,0.00016,2]
[408666872,1774096240782,-783.9373139,0.00016,2]
[408666873,1774096240809,-349.885,0.00016,2]
[408666912,1774096243176,-1867.03752048,0.00016,2]
[408666913,1774096243450,-3265.77161766,0.00016,2]
[408666914,1774096243461,-2384.09117949,0.00016,2]
[408666928,1774096246007,-5499.25033074,0.00015959,2]
[408666929,1774096246065,-47329.01206646,0.00015959,2]
[408666930,1774096246075,-403048.27403447,0.00016,2]
[408666931,1774096246120,-8514.47645196,0.00016,2]
[408666932,1774096246131,-6474.29999996,0.00016,2]
[408666955,1774097432216,-742.2918,0.00013034,2]
[408666956,1774097432226,-185.08005736,0.00013067,2]
[408666957,1774097432238,-344.2390786,0.00013067,2]
[408666958,1774097432249,-835.60817854,0.00013067,2]
[408666959,1774097432261,-267.09849734,0.00013067,2]
[408666960,1774097432273,-501.0,0.00013067,2]
[408666961,1774097432291,-357.3880435,0.00013067,2]
[408666962,1774097432303,-456.50541151,0.00013067,2]
[408666963,1774097432316,-500.0,0.00013067,2]
[408666964,1774097432332,-1537.97245266,0.00013067,2]
[408666965,1774097432343,-15.10828049,0.00013067,2]
[408666966,1774097432354,-1112.43652944,0.00013103,2]
[408666967,1774097432366,-730.31407913,0.00013103,2]
[408666968,1774097432392,-346.84803172,0.00013103,2]
[408666969,1774097438321,-238.46882753,0.00013103,2]
[408666970,1774097438331,-950.24172407,0.00013107,2]
[408666971,1774097438341,-5155.14,0.00013123,2]
[408666972,1774097438351,-250.0,0.0001315,2]
[408666973,1774097438361,-208.84160071,0.0001315,2]
[408666974,1774097438371,-1200.0,0.00013198,2]
[408666975,1774097438381,-300.0,0.00013199,2]
[408666976,1774097438390,-185.0,0.00013199,2]
[408666977,1774097438400,-166.52,0.00013234,2]